fUSD/lending_fUSD_20250514
["ID","MTS","AMOUNT","RATE_DAILY","PERIOD"]
[361066006,1747228251073,-400.0,0.00011253,2]
[361066007,1747228251083,-1000.36,0.00011253,2]
[361066008,1747228251092,-571.63,0.00011253,2]
[361066009,1747228251102,-400.0,0.00011253,2]
[361066010,1747228251111,-400.0,0.00011253,2]
[361066011,1747228251121,-400.0,0.00011253,2]
[361066012,1747228251130,-400.0,0.00011253,2]
[361066013,1747228251140,-400.0,0.00011253,2]
[361066014,1747228251150,-466.57,0.00011253,2]
[361066015,1747228251160,-805.36,0.00011253,2]
[361066016,1747228251170,-524.15,0.00011253,2]
[361066017,1747228251180,-436.88,0.00011253,2]
[361066018,1747228251189,-400.0,0.00011253,2]
[361066019,1747228251199,-850.93,0.00011253,2]
[361066020,1747228251210,-400.0,0.00011253,2]
[361066021,1747228251219,-503.72,0.00011253,2]
[361066022,1747228251229,-844.46,0.00011253,2]
[361066023,1747228251239,-901.34,0.00011253,2]
[361066024,1747228251249,-1678.46,0.00011253,2]
[361066025,1747228251259,-738.55,0.00011253,2]
[361066026,1747228251268,-805.44,0.00011253,2]
[361066027,1747228251278,-400.0,0.00011253,2]
[361066028,1747228251287,-7530.92,0.00011253,2]
[361066029,1747228251297,-400.0,0.00011253,2]
[361066030,1747228251306,-963.98,0.00011253,2]
[361066031,1747228251316,-811.52,0.00011253,2]
[361066032,1747228251326,-869.96,0.00011253,2]
[361066033,1747228251336,-400.0,0.00011253,2]
[361066034,1747228251346,-997.09,0.00011253,2]
[361066035,1747228251355,-9621.48,0.00011253,2]
[361066036,1747228251365,-400.0,0.00011253,2]
[361066037,1747228251374,-400.0,0.00011253,2]
[361066038,1747228251384,-400.0,0.00011253,2]
[361066039,1747228251394,-638.81,0.00011253,2]
[361066040,1747228251404,-1107.54,0.00011253,2]
[361066041,1747228251414,-1417.61,0.00011253,2]
[361066042,1747228251424,-725.11,0.00011253,2]
[361066043,1747228251434,-1715.04,0.00011253,2]
[361066044,1747228251444,-14978.28,0.00011253,2]
[361066045,1747228251454,-400.0,0.00011253,2]
[361066046,1747228251464,-2386.73,0.00011253,2]
[361066047,1747228251474,-400.0,0.00011253,2]
[361066048,1747228251487,-408.16,0.00011253,2]
[361066049,1747228251497,-895.5,0.00011253,2]
[361066050,1747228251507,-674.03,0.00011253,2]
[361066051,1747228251590,-1129.09,0.00011253,2]
[361066052,1747228251600,-400.0,0.00011253,2]
[361066053,1747228251610,-889.01,0.00011253,2]
[361066054,1747228251619,-451.77,0.00011253,2]
[361066055,1747228251629,-999.42,0.00011253,2]
[361066056,1747228251638,-424.85,0.00011253,2]
[361066057,1747228251647,-400.0,0.00011253,2]
[361066058,1747228251657,-942.31,0.00011253,2]
[361066059,1747228251667,-400.0,0.00011254,2]
[361066060,1747228251676,-400.0,0.00011254,2]
[361066061,1747228251685,-546.53,0.00011254,2]
[361066062,1747228251695,-400.0,0.00011254,2]
[361066063,1747228251704,-400.0,0.00011254,2]
[361066064,1747228251715,-400.0,0.00011254,2]
[361066065,1747228251724,-400.0,0.00011254,2]
[361066066,1747228251734,-400.0,0.00011254,2]
[361066067,1747228251743,-400.0,0.00011254,2]
[361066068,1747228251753,-400.0,0.00011254,2]
[361066069,1747228251763,-1683.91,0.00011254,2]
[361066070,1747228251772,-400.0,0.00011254,2]
[361066071,1747228251782,-400.0,0.00011254,2]
[361066072,1747228251791,-1655.42,0.00011254,2]
[361066073,1747228251800,-400.0,0.00011254,2]
[361066074,1747228251809,-400.0,0.00011254,2]
[361066075,1747228251819,-865.86,0.00011254,2]
[361066076,1747228251828,-400.0,0.00011254,2]
[361066077,1747228251838,-400.0,0.00011254,2]
[361066078,1747228251847,-246.48383994,0.00011254,2]
[361066079,1747228251857,-400.0,0.00011254,2]
[361066080,1747228251866,-400.0,0.00011254,2]
[361066081,1747228251876,-400.0,0.00011254,2]
[361066082,1747228251886,-400.0,0.00011254,2]
[361066083,1747228251895,-242.99519032,0.00011254,2]
[361066084,1747228251905,-400.0,0.00011254,2]
[361066085,1747228251915,-400.0,0.00011254,2]
[361066086,1747228251925,-400.0,0.00011254,2]
[361066087,1747228251935,-400.0,0.00011254,2]
[361066088,1747228251944,-400.0,0.00011254,2]
[361066089,1747228251954,-690.77,0.00011254,2]
[361066090,1747228251965,-400.0,0.00011254,2]
[361066091,1747228251974,-400.0,0.00011254,2]
[361066092,1747228251983,-433.73,0.00011254,2]
[361066093,1747228251992,-400.0,0.00011254,2]
[361066094,1747228252001,-1413.76,0.00011254,2]
[361066095,1747228252011,-400.0,0.00011254,2]
[361066096,1747228252020,-400.0,0.00011254,2]
[361066097,1747228252029,-400.0,0.00011254,2]
[361066098,1747228252039,-474.91,0.00011254,2]
[361066099,1747228252048,-102.79970273,0.00011254,2]
[361066100,1747228252603,-297.20029727,0.00011254,2]
[361066101,1747228252612,-60.96742773,0.00011254,2]
[361066102,1747228252628,-93.62166152,0.00011254,2]
[361066103,1747228252637,-400.0,0.00011254,2]
[361066104,1747228252647,-831.33,0.00011254,2]
[361066105,1747228252656,-459.52,0.00011254,2]
[361066106,1747228252666,-959.2,0.00011254,2]
[361066107,1747228252675,-400.0,0.00011254,2]
[361066108,1747228252685,-400.0,0.00011254,2]
[361066109,1747228252695,-535.42,0.00011254,2]
[361066110,1747228252704,-400.0,0.00011254,2]
[361066111,1747228252716,-400.0,0.00011254,2]
[361066112,1747228252726,-400.0,0.00011254,2]
[361066113,1747228252736,-400.0,0.00011254,2]
[361066114,1747228252746,-76.16818638,0.00011254,2]
[361066115,1747228252758,-323.83181362,0.00011254,2]
[361066116,1747228252767,-400.0,0.00011254,2]
[361066117,1747228252776,-412.46,0.00011254,2]
[361066118,1747228252785,-1228.73,0.00011254,2]
[361066119,1747228252795,-230.15817047,0.00011254,2]
[361066120,1747228252811,-169.84182953,0.00011254,2]
[361066121,1747228252820,-400.0,0.00011254,2]
[361066122,1747228252830,-832.02,0.00011254,2]
[361066123,1747228252840,-400.0,0.00011254,2]
[361066124,1747228252849,-660.04,0.00011254,2]
[361066125,1747228252859,-400.0,0.00011254,2]
[361066126,1747228252868,-952.58,0.00011254,2]
[361066127,1747228252877,-400.0,0.00011254,2]
[361066128,1747228252887,-400.0,0.00011254,2]
[361066129,1747228252897,-400.0,0.00011254,2]
[361066130,1747228252907,-400.0,0.00011254,2]
[361066131,1747228252916,-400.0,0.00011254,2]
[361066132,1747228252925,-400.0,0.00011254,2]
[361066133,1747228252935,-400.0,0.00011254,2]
[361066134,1747228252944,-400.0,0.00011254,2]
[361066135,1747228252953,-400.0,0.00011254,2]
[361066136,1747228252964,-400.0,0.00011254,2]
[361066137,1747228252973,-400.0,0.00011254,2]
[361066138,1747228252983,-400.0,0.00011254,2]
[361066139,1747228252992,-400.0,0.00011254,2]
[361066140,1747228253001,-400.0,0.00011254,2]
[361066141,1747228253011,-400.0,0.00011254,2]
[361066142,1747228253020,-400.0,0.00011254,2]
[361066143,1747228253030,-400.0,0.00011254,2]
[361066144,1747228253039,-400.0,0.00011254,2]
[361066145,1747228253047,-400.0,0.00011254,2]
[361066146,1747228253057,-400.0,0.00011254,2]
[361066147,1747228253067,-403.05,0.00011254,2]
[361066148,1747228253077,-601.12,0.00011254,2]
[361066149,1747228253087,-400.0,0.00011254,2]
[361066150,1747228253097,-528.58,0.00011254,2]
[361066151,1747228253107,-400.0,0.00011254,2]
[361066152,1747228253116,-498.75,0.00011254,2]
[361066153,1747228253126,-411.90553546,0.00011254,2]
[361066154,1747228253138,-151.0,0.00011255,2]
[361066155,1747228253148,-209.15338,0.00011255,2]
[361066156,1747228253158,-262.367879,0.00011255,2]
[361066157,1747228253168,-262.367879,0.00011255,2]
[361066158,1747228253177,-511.837997,0.00011255,2]
[361066159,1747228253187,-511.837997,0.00011255,2]
[361066160,1747228253197,-151.0,0.00011255,2]
[361066161,1747228253207,-151.0,0.00011255,2]
[361066162,1747228253218,-151.0,0.00011255,2]
[361066163,1747228253228,-151.0,0.00011255,2]
[361066164,1747228253238,-1699.835,0.00011256,2]
[361066165,1747228253249,-151.0,0.00011271,2]
[361066166,1747228253258,-151.0,0.0001128,2]
[361066167,1747228253268,-1000.0,0.0001128,2]
[361066168,1747228253278,-2624.24,0.00011281,2]
[361066169,1747228253288,-19999.99,0.00011281,2]
[361066170,1747228253298,-2411.73,0.00011281,2]
[361066171,1747228253308,-500.0,0.00011286,2]
[361066172,1747228253318,-151.0,0.00011295,2]
[361066173,1747228253328,-151.0,0.00011301,2]
[361066174,1747228253338,-6822.0,0.00011418,2]
[361066175,1747228253347,-154.0,0.00011418,2]
[361066176,1747228253357,-4032.0,0.00011418,2]
[361066177,1747228253367,-837.0,0.00011418,2]
[361066178,1747228253377,-879.0,0.00011418,2]
[361066179,1747228253387,-217.70852354,0.00011427,2]
[361066180,1747228253397,-2751.0,0.00011507,2]
[361066181,1747228253407,-216.0,0.0001151,2]
[361066182,1747228253418,-153.85482975,0.00011516,2]
[361066183,1747228253428,-693.3919763,0.0001152,2]
[361066184,1747228253438,-151.0,0.0001152,2]
[361066185,1747228253448,-1000.0,0.00011521,2]
[361066186,1747228253458,-778.0,0.00011525,2]
[361066187,1747228253473,-324.63447465,0.00011525,2]
[361066188,1747228253484,-400.0,0.00011525,2]
[361066189,1747228253499,-400.0,0.00011525,2]
[361066190,1747228253509,-400.0,0.00011525,2]
[361066191,1747228253519,-245.7559866,0.00011525,2]
[361066192,1747228253955,-154.2440134,0.00011525,2]
[361066193,1747228253969,-437.4,0.00011525,2]
[361066194,1747228253979,-400.0,0.00011525,2]
[361066195,1747228253989,-400.0,0.00011526,2]
[361066196,1747228253998,-479.14,0.00011526,2]
[361066197,1747228254008,-400.0,0.00011526,2]
[361066198,1747228254018,-1927.56,0.00011526,2]
[361066199,1747228254028,-400.0,0.00011526,2]
[361066200,1747228254037,-469.32,0.00011526,2]
[361066201,1747228254047,-400.0,0.00011526,2]
[361066202,1747228254058,-400.0,0.00011526,2]
[361066203,1747228254067,-400.0,0.00011526,2]
[361066204,1747228254076,-658.56,0.00011526,2]
[361066205,1747228254084,-400.0,0.00011526,2]
[361066206,1747228254092,-454.83781284,0.00011526,2]
[361066207,1747228254101,-400.0,0.00011526,2]
[361066208,1747228254110,-400.0,0.00011526,2]
[361066209,1747228254120,-400.0,0.00011526,2]
[361066210,1747228254130,-400.0,0.00011526,2]
[361066211,1747228254140,-400.0,0.00011526,2]
[361066212,1747228254149,-1225.12,0.00011526,2]
[361066213,1747228254159,-400.0,0.00011526,2]
[361066214,1747228254169,-477.55,0.00011526,2]
[361066215,1747228254179,-250.0,0.00011526,2]
[361066216,1747228254189,-400.0,0.00011526,2]
[361066217,1747228254199,-538.23,0.00011526,2]
[361066218,1747228254208,-400.0,0.00011526,2]
[361066219,1747228254221,-425.92,0.00011526,2]
[361066220,1747228254231,-678.32,0.00011526,2]
[361066221,1747228254241,-410.73,0.00011526,2]
[361066222,1747228254251,-413.92,0.00011526,2]
[361066223,1747228254261,-400.0,0.00011526,2]
[361066224,1747228254271,-400.0,0.00011526,2]
[361066225,1747228254281,-660.32,0.00011526,2]
[361066226,1747228254290,-400.0,0.00011526,2]
[361066227,1747228254300,-400.0,0.00011526,2]
[361066228,1747228254311,-847.51,0.00011526,2]
[361066229,1747228254320,-400.0,0.00011526,2]
[361066230,1747228254330,-450.0,0.00011526,2]
[361066231,1747228254340,-461.50475746,0.00011526,2]
[361066232,1747228254349,-400.0,0.00011526,2]
[361066233,1747228254359,-517.561951,0.00011526,2]
[361066234,1747228254369,-400.0,0.00011526,2]
[361066235,1747228254379,-400.0,0.00011526,2]
[361066236,1747228254389,-400.0,0.00011526,2]
[361066237,1747228254399,-267.74056062,0.00011526,2]
[361066238,1747228254409,-577.81,0.00011526,2]
[361066239,1747228254418,-400.0,0.00011526,2]
[361066240,1747228254428,-400.0,0.00011526,2]
[361066241,1747228254438,-400.0,0.00011526,2]
[361066242,1747228254448,-400.0,0.00011526,2]
[361066243,1747228254458,-405.21,0.00011526,2]
[361066244,1747228254471,-400.0,0.00011526,2]
[361066245,1747228254483,-815.38,0.00011526,2]
[361066246,1747228254497,-400.0,0.00011526,2]
[361066247,1747228254507,-400.0,0.00011526,2]
[361066248,1747228254517,-200.081865,0.00011526,2]
[361066249,1747228254529,-3291.998932,0.00011526,2]
[361066250,1747228254539,-512.51547545,0.00011526,2]
[361066251,1747228254549,-400.0,0.00011526,2]
[361066252,1747228254559,-1341.84,0.00011526,2]
[361066253,1747228254570,-446.07,0.00011526,2]
[361066254,1747228254581,-400.0,0.00011526,2]
[361066255,1747228254591,-400.0,0.00011526,2]
[361066256,1747228254601,-679.2,0.00011526,2]
[361066257,1747228254611,-400.0,0.00011526,2]
[361066258,1747228254621,-400.0,0.00011526,2]
[361066259,1747228254631,-653.28,0.00011526,2]
[361066260,1747228254640,-402.61,0.00011526,2]
[361066261,1747228254650,-423.4,0.00011526,2]
[361066262,1747228254661,-400.0,0.00011526,2]
[361066263,1747228254670,-400.0,0.00011526,2]
[361066264,1747228254680,-400.0,0.00011526,2]
[361066265,1747228254691,-400.0,0.00011526,2]
[361066266,1747228254700,-485.97,0.00011526,2]
[361066267,1747228254710,-400.0,0.00011526,2]
[361066268,1747228254722,-400.0,0.00011526,2]
[361066269,1747228254732,-581.74,0.00011526,2]
[361066270,1747228254742,-487.41,0.00011526,2]
[361066271,1747228254975,-574.25,0.00011526,2]
[361066272,1747228254986,-400.0,0.00011526,2]
[361066273,1747228254997,-400.0,0.00011526,2]
[361066274,1747228255007,-400.0,0.00011526,2]
[361066275,1747228255017,-484.12,0.00011526,2]
[361066276,1747228255026,-400.0,0.00011526,2]
[361066277,1747228255036,-602.35,0.00011526,2]
[361066278,1747228255046,-400.0,0.00011526,2]
[361066279,1747228255054,-247.94826967,0.00011526,2]
[361066280,1747228255075,-152.05173033,0.00011526,2]
[361066281,1747228255085,-227.11021762,0.00011526,2]
[361066282,1747228255096,-393.38523765,0.00011526,2]
[361066283,1747228255820,-400.0,0.00010978,2]
[361066284,1747228255830,-118.45996982,0.00010978,2]
[361066285,1747228255841,-580.38003018,0.00010978,2]
[361066286,1747228255851,-232.39,0.00011252,2]
[361066287,1747228255860,-698.84,0.00011252,2]
[361066288,1747228255870,-247.57454473,0.00011526,2]
[361066289,1747228255879,-400.0,0.00011526,2]
[361066290,1747228255889,-400.0,0.00011526,2]
[361066291,1747228255898,-400.0,0.00011526,2]
[361066292,1747228255909,-169.57109244,0.00011526,2]
[361066293,1747228255934,-230.42890756,0.00011526,2]
[361066294,1747228255943,-400.0,0.00011526,2]
[361066295,1747228255952,-400.0,0.00011526,2]
[361066296,1747228255963,-434.0,0.00011526,2]
[361066297,1747228255973,-113.66183499,0.00011526,2]
[361066298,1747228255984,-286.33816501,0.00011526,2]
[361066299,1747228255994,-400.0,0.00011526,2]
[361066300,1747228256004,-802.17,0.00011526,2]
[361066301,1747228256013,-191.49183499,0.00011526,2]
[361066302,1747228256025,-208.50816501,0.00011526,2]
[361066303,1747228256035,-408.21,0.00011526,2]
[361066304,1747228256044,-153.87683679,0.00011526,2]
[361066305,1747228256056,-246.12316321,0.00011526,2]
[361066306,1747228256065,-410.76850423,0.00011526,2]
[361066307,1747228256077,-294.01149577,0.00011526,2]
[361066308,1747228256086,-137.86669903,0.00011526,2]
[361066309,1747228256098,-390.47649002,0.00011526,2]
[361066310,1747228256216,-103.36681095,0.00011526,2]
[361066311,1747228256226,-283.79068905,0.00011526,2]
[361066312,1747228379827,150.0,0.00010644,7]
[361066313,1747228423187,-157.25,0.00010634,2]
[361066314,1747228519017,-165.02,0.00010558,2]
[361066315,1747228969002,1277.0,0.00013,10]
[361066316,1747229008573,-190.81634272,0.0001,2]
[361066317,1747229011542,-154.97417237,0.0001,2]
[361066318,1747229037236,421.92,8.222e-05,2]
[361066336,1747229428697,150.0,0.00010002,7]
[361066554,1747229438209,-157.25,9.993e-05,2]
[361066555,1747229438218,-1200.0,9.999e-05,2]
[361066556,1747229438228,-300.0,9.999e-05,2]
[361066557,1747229438239,-104.20948491,0.0001,2]
[361066558,1747229438249,-222.56255209,0.0001,2]
[361066559,1747229438261,-7206.43744791,0.0001,2]
[361066560,1747229438271,-1000.0,0.00010096,2]
[361066561,1747229438281,-421.92,0.00010486,2]
[361066562,1747229438290,-500.0,0.00010867,2]
[361066563,1747229438300,-442.99772766,0.00010867,2]
[361066564,1747229438310,-14047.51862851,0.00010868,2]
[361066565,1747229438320,-207.4,0.00010872,2]
[361066566,1747229438330,-1620.7313,0.00010877,2]
[361066567,1747229438340,-1720.481,0.00010877,2]
[361066568,1747229438349,-656.9262,0.00010877,2]
[361066569,1747229438359,-150.0,0.00010877,2]
[361066570,1747229438369,-309.3683,0.00010878,2]
[361066571,1747229438379,-8115.7988,0.00010878,2]
[361066572,1747229438388,-500.0,0.00010878,2]
[361066573,1747229438398,-32655.9216,0.00010878,2]
[361066574,1747229438408,-772.8988,0.00010878,2]
[361066575,1747229438418,-14181.1157,0.00010878,2]
[361066576,1747229438427,-13875.88884793,0.000109,2]
[361066577,1747229438437,-1447.3784454,0.000109,2]
[361066578,1747229438447,-5314.2707587,0.000109,2]
[361066579,1747229438462,-185.85876329,0.000109,2]
[361066580,1747229438472,-199.01807655,0.000109,2]
[361066581,1747229438480,-442.67373161,0.00010907,2]
[361066582,1747229438489,-500.94197924,0.00010973,2]
[361066583,1747229438498,-500.0,0.00010973,2]
[361066584,1747229438506,-500.0,0.00010973,2]
[361066585,1747229438515,-504.09856498,0.00010973,2]
[361066586,1747229438523,-426.13040596,0.00010973,2]
[361066587,1747229438531,-500.0,0.00010973,2]
[361066588,1747229438538,-500.0,0.00010973,2]
[361066589,1747229438547,-500.0,0.00010973,2]
[361066590,1747229438555,-500.0,0.00010973,2]
[361066591,1747229438563,-500.9829885,0.00010973,2]
[361066592,1747229438572,-500.83772935,0.00010973,2]
[361066593,1747229438579,-500.0,0.00010973,2]
[361066594,1747229438586,-500.0,0.00010973,2]
[361066595,1747229438594,-500.0,0.00010973,2]
[361066596,1747229438600,-500.0,0.00010973,2]
[361066597,1747229438608,-1304.53335217,0.00010975,3]
[361066598,1747229438617,-400.0,0.00010975,2]
[361066599,1747229438627,-400.0,0.00010975,2]
[361066600,1747229438637,-400.0,0.00010975,2]
[361066601,1747229438646,-476.40651239,0.00010975,2]
[361066603,1747229438656,-400.0,0.00010975,2]
[361066605,1747229438665,-400.0,0.00010975,2]
[361066607,1747229438675,-402.07,0.00010975,2]
[361066608,1747229438685,-400.0,0.00010975,2]
[361066609,1747229438694,-400.0,0.00010975,2]
[361066610,1747229438706,-406.03175644,0.00010975,2]
[361066612,1747229438716,-400.0,0.00010975,2]
[361066614,1747229438727,-400.0,0.00010975,2]
[361066616,1747229438737,-805.99,0.00010975,2]
[361066619,1747229438747,-706.13,0.00010975,2]
[361066621,1747229438756,-400.84836759,0.00010975,2]
[361066623,1747229438766,-435.1893572,0.00010975,2]
[361066625,1747229438775,-415.6,0.00010975,2]
[361066627,1747229438785,-400.0,0.00010975,2]
[361066629,1747229438794,-1422.66,0.00010975,2]
[361066630,1747229438804,-733.78,0.00010975,2]
[361066631,1747229438813,-400.0,0.00010975,2]
[361066632,1747229438824,-400.0,0.00010975,2]
[361066633,1747229438835,-400.0,0.00010975,2]
[361066634,1747229438845,-400.0,0.00010975,2]
[361066635,1747229438855,-400.0,0.00010975,2]
[361066636,1747229438865,-1062.36,0.00010975,2]
[361066637,1747229438879,-3169.59,0.00010975,2]
[361066638,1747229438888,-1119.93,0.00010975,2]
[361066639,1747229438897,-400.0,0.00010975,2]
[361066640,1747229438909,-2813.63,0.00010975,2]
[361066641,1747229438919,-7852.04,0.00010975,2]
[361066642,1747229438928,-401.93,0.00010975,2]
[361066643,1747229438937,-1302.7,0.00010975,2]
[361066644,1747229438947,-482.91684738,0.00010975,2]
[361066645,1747229438957,-400.0,0.00010975,2]
[361066646,1747229438967,-151.6655458,0.00010975,2]
[361066647,1747229438976,-400.0,0.00010975,2]
[361066648,1747229438986,-400.0,0.00010975,2]
[361066649,1747229438996,-403.61604175,0.00010975,2]
[361066650,1747229439008,-400.0,0.00010975,2]
[361066651,1747229439017,-439.86,0.00010975,2]
[361066652,1747229439026,-400.0,0.00010975,2]
[361066653,1747229439035,-400.0,0.00010975,2]
[361066654,1747229439045,-400.0,0.00010975,2]
[361066655,1747229439054,-400.0,0.00010975,2]
[361066656,1747229439064,-400.0,0.00010975,2]
[361066657,1747229439074,-400.0,0.00010975,2]
[361066658,1747229439083,-400.0,0.00010975,2]
[361066659,1747229439092,-400.0,0.00010975,2]
[361066660,1747229439102,-1233.02,0.00010975,2]
[361066661,1747229439111,-400.0,0.00010975,2]
[361066662,1747229439120,-400.0,0.00010975,2]
[361066663,1747229439131,-400.0,0.00010975,2]
[361066664,1747229439141,-401.37751704,0.00010975,2]
[361066665,1747229439150,-400.0,0.00010975,2]
[361066666,1747229439159,-151.19089491,0.00010975,2]
[361066667,1747229439169,-1950.51,0.00010975,2]
[361066668,1747229439178,-400.0,0.00010975,2]
[361066671,1747229439457,-524.197361,0.00010975,2]
[361066672,1747229439467,-814.78,0.00010975,2]
[361066673,1747229439477,-400.0,0.00010975,2]
[361066674,1747229439487,-400.0,0.00010975,2]
[361066675,1747229439497,-400.0,0.00010975,2]
[361066676,1747229439506,-404.99107627,0.00010975,2]
[361066677,1747229439516,-400.0,0.00010975,2]
[361066678,1747229439526,-400.0,0.00010975,2]
[361066679,1747229439536,-400.0,0.00010975,2]
[361066680,1747229439546,-400.0,0.00010975,2]
[361066681,1747229439556,-1304.53335216,0.00010976,3]
[361066682,1747229439566,-619.83,0.00010976,2]
[361066683,1747229439575,-967.34,0.00010976,2]
[361066684,1747229439584,-400.0,0.00010976,2]
[361066685,1747229439594,-400.0,0.00010976,2]
[361066686,1747229439604,-1239.7,0.00010976,2]
[361066687,1747229439613,-526.71,0.00010976,2]
[361066688,1747229439623,-703.06,0.00010976,2]
[361066689,1747229439633,-874.27,0.00010976,2]
[361066690,1747229439643,-400.0,0.00010976,2]
[361066691,1747229439654,-301.01925369,0.00010976,2]
[361066692,1747229439663,-400.0,0.00010976,2]
[361066693,1747229439673,-400.0,0.00010976,2]
[361066694,1747229439683,-307.20343804,0.00010976,2]
[361066695,1747229439693,-400.0,0.00010976,2]
[361066696,1747229439705,-562.99,0.00010976,2]
[361066697,1747229439715,-400.0,0.00010976,2]
[361066698,1747229439725,-400.0,0.00010976,2]
[361066699,1747229439735,-400.0,0.00010976,2]
[361066700,1747229439745,-400.0,0.00010976,2]
[361066701,1747229439755,-474.13368327,0.00010976,2]
[361066702,1747229439765,-500.0,0.00010976,2]
[361066703,1747229439775,-400.0,0.00010976,2]
[361066704,1747229439785,-400.0,0.00010976,2]
[361066705,1747229439795,-400.0,0.00010976,2]
[361066706,1747229439805,-496.08272906,0.00010976,2]
[361066707,1747229439815,-400.0,0.00010976,2]
[361066708,1747229439825,-400.0,0.00010976,2]
[361066709,1747229439836,-1374.48,0.00010976,2]
[361066710,1747229439846,-202.647018,0.00010976,2]
[361066711,1747229439855,-3334.204046,0.00010976,2]
[361066712,1747229439867,-400.0,0.00010976,2]
[361066713,1747229439876,-400.0,0.00010976,2]
[361066714,1747229439886,-400.0,0.00010976,2]
[361066715,1747229439896,-400.0,0.00010976,2]
[361066716,1747229439907,-400.0,0.00010976,2]
[361066717,1747229439919,-400.0,0.00010976,2]
[361066718,1747229439929,-400.0,0.00010976,2]
[361066719,1747229439939,-451.30547546,0.00010976,2]
[361066720,1747229439948,-400.0,0.00010976,2]
[361066721,1747229439963,-400.0,0.00010976,2]
[361066722,1747229439973,-487.98,0.00010976,2]
[361066723,1747229439983,-508.43,0.00010976,2]
[361066724,1747229439993,-509.87,0.00010976,2]
[361066725,1747229440003,-400.0,0.00010976,2]
[361066726,1747229440013,-400.0,0.00010976,2]
[361066727,1747229440023,-400.0,0.00010976,2]
[361066728,1747229440033,-523.51185376,0.00010976,2]
[361066729,1747229440043,-400.0,0.00010976,2]
[361066730,1747229440054,-410.55,0.00010976,2]
[361066731,1747229440063,-400.0,0.00010976,2]
[361066732,1747229440073,-401.57370017,0.00010976,2]
[361066733,1747229440082,-497.74,0.00010976,2]
[361066734,1747229440092,-624.45,0.00010976,2]
[361066735,1747229440102,-400.0,0.00010976,2]
[361066736,1747229440112,-579.83,0.00010976,2]
[361066737,1747229440121,-551.09,0.00010976,2]
[361066738,1747229440131,-400.0,0.00010976,2]
[361066739,1747229440140,-400.0,0.00010976,2]
[361066740,1747229440150,-4767.17,0.00010976,2]
[361066741,1747229440160,-1397.47,0.00010976,2]
[361066742,1747229440169,-589.23,0.00010976,2]
[361066744,1747229440179,-400.0,0.00010976,2]
[361066745,1747229440188,-400.0,0.00010976,2]
[361066746,1747229440197,-667.73,0.00010976,2]
[361066747,1747229440209,-1859.97,0.00010976,2]
[361066748,1747229440219,-532.64,0.00010976,2]
[361066749,1747229440228,-400.0,0.00010976,2]
[361066750,1747229440238,-2263.26,0.00010976,2]
[361066751,1747229440247,-901.26,0.00010976,2]
[361066752,1747229440257,-672.37,0.00010976,2]
[361066753,1747229440266,-751.07,0.00010976,2]
[361066754,1747229440275,-1401.55,0.00010976,2]
[361066755,1747229440285,-2576.8,0.00010976,2]